[Event "NJSK 2023 Jeugd A"]
[Site "Almelo, Netherlands"]
[Date "2023.05.02"]
[Round "3.1"]
[White "Van Kuijk, Vadim"]
[Black "Van der Hagen, Loek"]
[Result "0-1"]
[TimeControl "90min/40moves + 30min + 30sec/move"]
[WhiteElo "1968"]
[BlackElo "2273"]

1. e4 {[%clk 01:30:07]} {[%emt 00:00:53]} c5 {[%clk 01:30:54]} {[%emt
00:00:06]} 2. Nf3 {[%clk 01:30:31]} {[%emt 00:00:06]} Nc6 {[%clk 01:31:20]}
{[%emt 00:00:05]} 3. d4 {[%clk 01:30:52]} {[%emt 00:00:09]} cxd4 {[%clk
01:31:44]} {[%emt 00:00:05]} 4. Nxd4 {[%clk 01:31:17]} {[%emt 00:00:04]} Nf6
{[%clk 01:32:07]} {[%emt 00:00:08]} 5. Nc3 {[%clk 01:31:41]} {[%emt 00:00:07]}
d6 {[%clk 01:32:32]} {[%emt 00:00:05]} 6. Bg5 {[%clk 01:31:34]} {[%emt
00:00:36]} Bd7 {[%clk 01:32:48]} {[%emt 00:00:13]} 7. Nxc6 {[%clk 01:30:55]}
{[%emt 00:01:10]} Bxc6 {[%clk 01:33:01]} {[%emt 00:00:17]} 8. Bb5 {[%clk
01:30:16]} {[%emt 00:01:09]} Bxb5 {[%clk 01:31:46]} {[%emt 00:01:45]} 9. Bxf6
{[%clk 01:28:10]} {[%emt 00:02:36]} gxf6 {[%clk 01:32:10]} {[%emt 00:00:06]} 10.
Nxb5 {[%clk 01:28:12]} {[%emt 00:00:28]} Qa5+ {[%clk 01:31:19]} {[%emt
00:01:20]} 11. Nc3 {[%clk 01:28:30]} {[%emt 00:00:12]} f5 {[%clk 01:25:11]}
{[%emt 00:06:39]} 12. Qd5 {[%clk 01:17:00]} {[%emt 00:12:01]} Qxd5 {[%clk
01:24:52]} {[%emt 00:00:48]} 13. Nxd5 {[%clk 01:17:22]} {[%emt 00:00:08]} Rc8
{[%clk 01:25:14]} {[%emt 00:00:08]} 14. exf5 {[%clk 01:15:50]} {[%emt
00:02:02]} Rxc2 {[%clk 01:21:05]} {[%emt 00:04:39]} 15. O-O {[%clk 01:15:22]}
{[%emt 00:00:58]} Kd7 {[%clk 01:06:10]} {[%emt 00:15:25]} 16. Rac1 {[%clk
00:41:18]} {[%emt 00:34:34]} Rxc1 {[%clk 00:57:31]} {[%emt 00:09:08]} 17. Rxc1
{[%clk 00:41:07]} {[%emt 00:00:37]} e6 {[%clk 00:57:59]} {[%emt 00:00:07]} 18.
Rc7+ {[%clk 00:28:16]} {[%emt 00:13:21]} Kd8 {[%clk 00:58:24]} {[%emt
00:00:04]} 19. Rxf7 {[%clk 00:11:53]} {[%emt 00:16:53]} exd5 {[%clk 00:58:49]}
{[%emt 00:00:05]} 20. Rxb7 {[%clk 00:12:11]} {[%emt 00:00:12]} a6 {[%clk
00:58:33]} {[%emt 00:00:47]} 21. Ra7 {[%clk 00:10:29]} {[%emt 00:02:12]} Kc8
{[%clk 00:58:39]} {[%emt 00:00:23]} 22. f6 {[%clk 00:10:20]} {[%emt 00:00:40]}
Kb8 {[%clk 00:58:44]} {[%emt 00:00:25]} 23. Rd7 {[%clk 00:09:52]} {[%emt
00:00:59]} d4 {[%clk 00:57:17]} {[%emt 00:01:56]} 24. Kf1 {[%clk 00:09:26]}
{[%emt 00:00:56]} d3 {[%clk 00:42:16]} {[%emt 00:15:30]} 25. Ke1 {[%clk
00:08:14]} {[%emt 00:01:42]} Bh6 {[%clk 00:40:33]} {[%emt 00:02:13]} 26. f7
{[%clk 00:08:35]} {[%emt 00:00:09]} Rc8 {[%clk 00:40:36]} {[%emt 00:00:27]} 27.
f4 {[%clk 00:08:20]} {[%emt 00:00:45]} Bxf4 {[%clk 00:39:26]} {[%emt 00:01:40]}
28. g3 {[%clk 00:05:52]} {[%emt 00:02:58]} Be3 {[%clk 00:36:41]} {[%emt
00:03:15]} 29. Kf1 {[%clk 00:05:32]} {[%emt 00:00:51]} Rf8 {[%clk 00:19:34]}
{[%emt 00:17:36]} 30. Re7 {[%clk 00:04:06]} {[%emt 00:01:57]} Bh6 {[%clk
00:20:03]} {[%emt 00:00:01]} 31. g4 {[%clk 00:04:09]} {[%emt 00:00:27]} Kc8
{[%clk 00:18:43]} {[%emt 00:01:54]} 32. g5 {[%clk 00:04:27]} {[%emt 00:00:08]}
Bg7 {[%clk 00:19:11]} {[%emt 00:00:01]} 33. Ke1 {[%clk 00:03:46]} {[%emt
00:01:12]} Kd8 {[%emt 00:00:41]} 34. Ra7 {[%clk 00:04:00]} Be5 {[%clk
00:17:55]} {[%emt 00:01:51]} 35. Kd2 {[%clk 00:02:22]} {[%emt 00:02:08]} Bf4+
{[%clk 00:11:59]} {[%emt 00:06:25]} 36. Kxd3 {[%clk 00:02:48]} {[%emt
00:00:04]} Bxg5 {[%clk 00:12:22]} {[%emt 00:00:07]} 37. Rxa6 {[%clk 00:01:39]}
{[%emt 00:01:39]} Kd7 {[%clk 00:11:37]} {[%emt 00:01:15]} 38. b4 {[%clk
00:01:23]} {[%emt 00:00:47]} Ke6 {[%clk 00:11:34]} {[%emt 00:00:33]} 39. Ra7
{[%clk 00:01:01]} {[%emt 00:00:52]} Rxf7 {[%clk 00:07:52]} {[%emt 00:04:10]} 40.
Rxf7 {[%clk 00:01:21]} {[%emt 00:00:10]} Kxf7 {[%clk 00:08:21]} {[%emt
00:00:02]} 41. a4 {[%clk 00:29:24]} {[%emt 00:02:26]} Ke6 {[%clk 00:37:47]}
{[%emt 00:01:05]} 42. a5 {[%clk 00:26:45]} {[%emt 00:03:09]} Bh4 {[%clk
00:30:52]} {[%emt 00:07:24]} 43. b5 {[%clk 00:22:41]} {[%emt 00:04:35]} Be1
{[%clk 00:30:59]} {[%emt 00:00:22]} 44. a6 {[%clk 00:22:40]} {[%emt 00:00:31]}
Bf2 {[%clk 00:31:24]} {[%emt 00:00:05]} 45. Ke4 {[%clk 00:22:26]} {[%emt
00:00:44]} d5+ {[%clk 00:31:40]} {[%emt 00:00:14]} 46. Kf4 {[%clk 00:22:51]}
{[%emt 00:00:05]} Bc5 {[%clk 00:32:03]} {[%emt 00:00:08]} 47. h4 {[%clk
00:23:03]} {[%emt 00:00:17]} h6 {[%clk 00:30:56]} {[%emt 00:01:37]} 0-1

[Event "NJSK 2023 Jeugd A"]
[Site "Almelo, Netherlands"]
[Date "2023.05.02"]
[Round "3.2"]
[White "De Winter, Arthur"]
[Black "Achuthan, Dylan"]
[Result "1-0"]
[TimeControl "90min/40moves + 30min + 30sec/move"]
[WhiteElo "2374"]
[BlackElo "2045"]

1. e4 {[%clk 01:30:57]} {[%emt 00:00:02]} c5 {[%clk 01:30:51]} {[%emt
00:00:09]} 2. Nf3 {[%clk 01:31:23]} {[%emt 00:00:04]} Nc6 {[%clk 01:31:15]}
{[%emt 00:00:06]} 3. d4 {[%clk 01:31:52]} {[%emt 00:00:02]} cxd4 {[%clk
01:31:35]} {[%emt 00:00:10]} 4. Nxd4 {[%clk 01:32:20]} {[%emt 00:00:02]} e5
{[%clk 01:31:37]} {[%emt 00:00:27]} 5. Nb5 {[%clk 01:32:47]} {[%emt 00:00:03]}
d6 {[%clk 01:32:00]} {[%emt 00:00:07]} 6. N1c3 {[%clk 01:33:15]} {[%emt
00:00:02]} a6 {[%clk 01:32:23]} {[%emt 00:00:08]} 7. Na3 {[%clk 01:33:43]}
{[%emt 00:00:02]} b5 {[%clk 01:32:34]} {[%emt 00:00:19]} 8. Nd5 {[%clk
01:34:08]} {[%emt 00:00:04]} Nge7 {[%clk 01:32:57]} {[%emt 00:00:07]} 9. Bd3
{[%clk 01:34:36]} {[%emt 00:00:03]} Nxd5 {[%clk 01:33:18]} {[%emt 00:00:09]} 10.
exd5 {[%clk 01:35:03]} {[%emt 00:00:02]} Nd4 {[%clk 01:33:39]} {[%emt
00:00:10]} 11. c3 {[%clk 01:35:30]} {[%emt 00:00:03]} Nf5 {[%clk 01:34:02]}
{[%emt 00:00:07]} 12. Nc2 {[%clk 01:35:55]} {[%emt 00:00:05]} g6 {[%clk
01:33:39]} {[%emt 00:00:53]} 13. Nb4 {[%clk 01:35:29]} {[%emt 00:00:56]} Bd7
{[%clk 01:34:00]} {[%emt 00:00:08]} 14. a4 {[%clk 01:34:17]} {[%emt 00:01:42]}
bxa4 {[%clk 01:34:10]} {[%emt 00:00:20]} 15. O-O {[%clk 01:34:40]} {[%emt
00:00:08]} Bg7 {[%clk 01:34:30]} {[%emt 00:00:10]} 16. Nc6 {[%clk 01:34:34]}
{[%emt 00:00:35]} Bxc6 {[%clk 01:13:17]} {[%emt 00:21:43]} 17. dxc6 {[%clk
01:34:54]} {[%emt 00:00:11]} d5 {[%clk 01:13:28]} {[%emt 00:00:18]} 18. Qxa4
{[%clk 01:30:12]} {[%emt 00:05:12]} O-O {[%clk 01:11:12]} {[%emt 00:02:46]} 19.
Rd1 {[%clk 01:22:16]} {[%emt 00:08:26]} Qb6 {[%clk 00:30:01]} {[%emt 00:41:41]}
20. Bxf5 {[%clk 00:48:54]} {[%emt 00:33:52]} gxf5 {[%clk 00:30:27]} {[%emt
00:00:05]} 21. Rxd5 {[%clk 00:49:12]} {[%emt 00:00:12]} Rfc8 {[%clk 00:29:27]}
{[%emt 00:01:30]} 22. Be3 {[%clk 00:38:53]} {[%emt 00:10:49]} Qxb2 {[%clk
00:25:44]} {[%emt 00:04:12]} 23. Rad1 {[%clk 00:35:11]} {[%emt 00:04:12]} Qxc3
{[%clk 00:23:05]} {[%emt 00:03:09]} 24. Rc5 {[%clk 00:34:41]} {[%emt 00:01:01]}
Qb2 {[%clk 00:23:33]} {[%emt 00:00:02]} 25. c7 {[%clk 00:33:43]} {[%emt
00:01:27]} f4 {[%clk 00:20:25]} {[%emt 00:03:38]} 26. Bc1 {[%clk 00:33:33]}
{[%emt 00:00:40]} Qb6 {[%clk 00:07:44]} {[%emt 00:13:11]} 27. Qc4 {[%clk
00:32:14]} {[%emt 00:01:48]} Qe6 {[%clk 00:02:41]} {[%emt 00:05:34]} 28. Qe4
{[%clk 00:30:50]} {[%emt 00:01:54]} h6 {[%clk 00:00:51]} {[%emt 00:02:20]} 29.
Qxa8 {[%clk 00:28:55]} {[%emt 00:02:25]} Rxa8 {[%clk 00:01:14]} {[%emt
00:00:07]} 30. Rd8+ {[%clk 00:29:23]} {[%emt 00:00:02]} Kh7 {[%clk 00:00:55]}
{[%emt 00:00:50]} 31. Rxa8 {[%clk 00:29:49]} {[%emt 00:00:03]} Qd6 {[%clk
00:00:56]} {[%emt 00:00:29]} 32. Rd8 {[%clk 00:30:11]} {[%emt 00:00:08]} 1-0

[Event "NJSK 2023 Jeugd A"]
[Site "Almelo, Netherlands"]
[Date "2023.05.02"]
[Round "3.3"]
[White "Wierenga, Jael"]
[Black "Alvares, Thomas"]
[Result "1-0"]
[TimeControl "90min/40moves + 30min + 30sec/move"]
[WhiteElo "1772"]
[BlackElo "1825"]

1. d4 {[%clk 01:30:58]} {[%emt 00:00:01]} Nf6 {[%clk 01:30:52]} {[%emt
00:00:08]} 2. Nc3 {[%clk 01:31:22]} {[%emt 00:00:07]} d5 {[%clk 01:31:07]}
{[%emt 00:00:15]} 3. Bf4 {[%clk 01:31:46]} {[%emt 00:00:07]} c5 {[%clk
01:31:30]} {[%emt 00:00:06]} 4. e4 {[%clk 01:32:12]} {[%emt 00:00:04]} dxe4
{[%clk 01:29:15]} {[%emt 00:02:45]} 5. dxc5 {[%clk 01:31:54]} {[%emt 00:00:48]}
Qxd1+ {[%clk 01:29:10]} {[%emt 00:00:34]} 6. Rxd1 {[%clk 01:32:13]} {[%emt
00:00:11]} Bd7 {[%clk 01:19:59]} {[%emt 00:09:42]} 7. f3 {[%clk 01:27:59]}
{[%emt 00:04:43]} e6 {[%clk 01:10:44]} {[%emt 00:09:45]} 8. b4 {[%clk
01:26:52]} {[%emt 00:01:37]} a5 {[%clk 01:09:24]} {[%emt 00:01:50]} 9. a3
{[%clk 01:26:51]} {[%emt 00:00:31]} axb4 {[%clk 01:07:26]} {[%emt 00:02:28]} 10.
axb4 {[%clk 01:27:20]} {[%emt 00:00:02]} Nc6 {[%clk 01:06:43]} {[%emt
00:01:13]} 11. Nb5 {[%clk 01:23:45]} {[%emt 00:04:05]} Ra4 {[%clk 00:53:12]}
{[%emt 00:14:01]} 12. c3 {[%clk 01:03:45]} {[%emt 00:20:30]} exf3 {[%clk
00:44:43]} {[%emt 00:08:58]} 13. Nxf3 {[%clk 01:04:01]} {[%emt 00:00:14]} Nd5
{[%clk 00:39:01]} {[%emt 00:06:12]} 14. Nc7+ {[%clk 00:44:49]} {[%emt
00:19:42]} Nxc7 {[%clk 00:38:31]} {[%emt 00:01:00]} 15. Bxc7 {[%clk 00:45:17]}
{[%emt 00:00:02]} Be7 {[%clk 00:36:13]} {[%emt 00:02:48]} 16. b5 {[%clk
00:24:47]} {[%emt 00:21:01]} Na5 {[%clk 00:27:21]} {[%emt 00:09:22]} 17. c6
{[%clk 00:20:28]} {[%emt 00:04:49]} bxc6 {[%clk 00:23:40]} {[%emt 00:04:11]} 18.
b6 {[%clk 00:19:30]} {[%emt 00:01:28]} Bc8 {[%clk 00:21:31]} {[%emt 00:02:38]}
19. Be2 {[%clk 00:18:26]} {[%emt 00:01:34]} Ra2 {[%clk 00:09:46]} {[%emt
00:12:14]} 20. Ne5 {[%clk 00:11:18]} {[%emt 00:07:39]} O-O {[%clk 00:06:52]}
{[%emt 00:03:25]} 21. Bf3 {[%clk 00:10:47]} {[%emt 00:01:00]} Bc5 {[%clk
00:06:26]} {[%emt 00:00:55]} 22. Rf1 {[%clk 00:10:02]} {[%emt 00:01:16]} Ba6
{[%clk 00:03:22]} {[%emt 00:03:34]} 23. Nd3 {[%clk 00:10:25]} {[%emt 00:00:07]}
Bxd3 {[%clk 00:01:49]} {[%emt 00:02:04]} 24. Rxd3 {[%clk 00:10:53]} {[%emt
00:00:01]} Rb2 {[%clk 00:01:58]} {[%emt 00:00:22]} 25. b7 {[%clk 00:10:39]}
{[%emt 00:00:44]} Nxb7 {[%clk 00:02:07]} {[%emt 00:00:20]} 26. Bxc6 {[%clk
00:10:57]} {[%emt 00:00:12]} Rc8 {[%clk 00:01:31]} {[%emt 00:01:07]} 27. Rd7
{[%clk 00:09:28]} {[%emt 00:01:58]} f6 {[%clk 00:00:32]} {[%emt 00:01:30]} 28.
Rf4 {[%clk 00:08:03]} {[%emt 00:01:53]} Ra8 {[%clk 00:00:36]} {[%emt 00:00:27]}
29. Bf3 {[%clk 00:05:43]} {[%emt 00:02:50]} Ra1+ {[%clk 00:00:36]} {[%emt
00:00:30]} 30. Rd1 {[%clk 00:06:03]} {[%emt 00:00:10]} Rxd1+ {[%clk 00:00:39]}
{[%emt 00:00:28]} 31. Kxd1 {[%clk 00:06:18]} {[%emt 00:00:14]} Kf7 {[%clk
00:00:32]} {[%emt 00:00:38]} 32. Rc4 {[%clk 00:06:07]} {[%emt 00:00:41]} Be7
{[%clk 00:30:00]} {[%emt 00:00:32]} {time} 1-0

[Event "NJSK 2023 Jeugd A"]
[Site "Almelo, Netherlands"]
[Date "2023.05.02"]
[Round "3.4"]
[White "Slagboom, Leandro"]
[Black "Adams, Oscar"]
[Result "1-0"]
[TimeControl "90min/40moves + 30min + 30sec/move"]
[WhiteElo "2228"]
[BlackElo "1760"]

1. d4 {[%clk 01:30:56]} {[%emt 00:00:04]} d6 {[%clk 01:30:47]} {[%emt
00:00:14]} 2. e4 {[%clk 01:30:57]} {[%emt 00:00:28]} c6 {[%clk 01:30:51]}
{[%emt 00:00:26]} 3. Nf3 {[%clk 01:30:33]} {[%emt 00:00:53]} g6 {[%clk
01:30:44]} {[%emt 00:00:38]} 4. Bd3 {[%clk 01:29:48]} {[%emt 00:01:14]} Bg7
{[%clk 01:30:58]} {[%emt 00:00:16]} 5. h3 {[%clk 01:29:41]} {[%emt 00:00:38]}
Na6 {[%clk 01:30:00]} {[%emt 00:01:28]} 6. c3 {[%clk 01:29:03]} {[%emt
00:01:08]} Nf6 {[%clk 01:28:33]} {[%emt 00:01:57]} 7. O-O {[%clk 01:29:08]}
{[%emt 00:00:24]} Nc7 {[%clk 01:28:39]} {[%emt 00:00:24]} 8. Be3 {[%clk
01:26:52]} {[%emt 00:02:46]} O-O {[%clk 01:26:07]} {[%emt 00:03:02]} 9. Nbd2
{[%clk 01:26:19]} {[%emt 00:01:03]} Be6 {[%clk 01:22:31]} {[%emt 00:04:07]} 10.
a4 {[%clk 01:23:21]} {[%emt 00:03:28]} Nh5 {[%clk 01:18:04]} {[%emt 00:04:56]}
11. Re1 {[%clk 01:18:19]} {[%emt 00:05:32]} f5 {[%clk 01:12:57]} {[%emt
00:05:38]} 12. exf5 {[%clk 01:16:24]} {[%emt 00:02:24]} Bxf5 {[%clk 01:12:03]}
{[%emt 00:01:25]} 13. Bf1 {[%clk 01:09:05]} {[%emt 00:07:47]} Be6 {[%clk
01:05:53]} {[%emt 00:06:42]} 14. Ng5 {[%clk 01:06:00]} {[%emt 00:03:35]} Qd7
{[%clk 01:04:44]} {[%emt 00:01:38]} 15. Nxe6 {[%clk 01:03:21]} {[%emt
00:03:10]} Nxe6 {[%clk 01:04:25]} {[%emt 00:00:48]} 16. Qg4 {[%clk 00:58:35]}
{[%emt 00:05:16]} Nf6 {[%clk 01:02:21]} {[%emt 00:02:34]} 17. Qh4 {[%clk
00:58:07]} {[%emt 00:00:57]} Kh8 {[%clk 00:53:14]} {[%emt 00:09:38]} 18. Bd3
{[%clk 00:55:18]} {[%emt 00:03:19]} Nh5 {[%clk 00:49:44]} {[%emt 00:04:00]} 19.
g3 {[%clk 00:52:33]} {[%emt 00:03:15]} Rf7 {[%clk 00:45:55]} {[%emt 00:04:19]}
20. Ne4 {[%clk 00:46:49]} {[%emt 00:06:15]} Raf8 {[%clk 00:43:14]} {[%emt
00:03:10]} 21. Re2 {[%clk 00:45:15]} {[%emt 00:02:04]} Nef4 {[%clk 00:38:30]}
{[%emt 00:05:14]} 22. gxf4 {[%clk 00:39:28]} {[%emt 00:06:18]} Rxf4 {[%clk
00:38:28]} {[%emt 00:00:31]} 23. Bxf4 {[%clk 00:32:50]} {[%emt 00:07:08]} Rxf4
{[%clk 00:38:52]} {[%emt 00:00:06]} 24. Qg5 {[%clk 00:29:10]} {[%emt 00:04:10]}
Qxh3 {[%clk 00:38:02]} {[%emt 00:01:19]} 25. Qg2 {[%clk 00:24:57]} {[%emt
00:04:43]} Qxd3 {[%clk 00:36:45]} {[%emt 00:01:49]} 26. Re3 {[%clk 00:24:00]}
{[%emt 00:01:26]} Qc4 {[%clk 00:33:36]} {[%emt 00:03:39]} 27. Ng3 {[%clk
00:21:34]} {[%emt 00:02:57]} Nxg3 {[%clk 00:30:10]} {[%emt 00:03:55]} 28. fxg3
{[%clk 00:21:41]} {[%emt 00:00:23]} Rf7 {[%clk 00:29:39]} {[%emt 00:01:01]} 29.
Rf3 {[%clk 00:17:44]} {[%emt 00:04:27]} e5 {[%clk 00:28:32]} {[%emt 00:01:37]}
30. Rxf7 {[%clk 00:17:07]} {[%emt 00:01:08]} Qxf7 {[%clk 00:28:59]} {[%emt
00:00:03]} 31. dxe5 {[%clk 00:16:30]} {[%emt 00:01:07]} Bxe5 {[%clk 00:29:16]}
{[%emt 00:00:13]} 32. Rf1 {[%clk 00:16:22]} {[%emt 00:00:38]} Qe7 {[%clk
00:29:02]} {[%emt 00:00:43]} 33. Qf2 {[%clk 00:14:50]} {[%emt 00:02:02]} Kg7
{[%clk 00:28:21]} {[%emt 00:01:11]} 34. a5 {[%clk 00:13:57]} {[%emt 00:01:24]}
c5 {[%clk 00:27:43]} {[%emt 00:01:07]} 35. Kg2 {[%clk 00:13:15]} {[%emt
00:01:12]} Bf6 {[%clk 00:25:14]} {[%emt 00:02:59]} 36. Qf3 {[%clk 00:11:56]}
{[%emt 00:01:49]} Be5 {[%clk 00:23:37]} {[%emt 00:02:07]} 37. Qd5 {[%clk
00:10:53]} {[%emt 00:01:32]} Qd7 {[%clk 00:20:48]} {[%emt 00:03:19]} 38. Rf3
{[%clk 00:09:24]} {[%emt 00:02:00]} Qe7 {[%clk 00:18:28]} {[%emt 00:02:50]} 39.
b4 {[%clk 00:07:11]} {[%emt 00:02:43]} b6 {[%clk 00:16:56]} {[%emt 00:02:03]}
40. a6 {[%clk 00:06:01]} {[%emt 00:01:39]} Bf6 {[%clk 00:15:21]} {[%emt
00:02:05]} 41. Qb7 {[%clk 00:02:58]} {[%emt 00:03:33]} Kf7 {[%clk 00:15:27]}
{[%emt 00:00:24]} 42. Re3 {[%clk 00:02:16]} {[%emt 00:01:12]} Be5 {[%clk
00:15:29]} {[%emt 00:00:29]} 43. bxc5 {[%clk 00:02:13]} {[%emt 00:00:33]} bxc5
{[%clk 00:15:39]} {[%emt 00:00:20]} 44. Re2 {[%clk 00:01:34]} {[%emt 00:01:08]}
Ke6 {[%clk 00:15:37]} {[%emt 00:00:32]} 45. c4 {[%clk 00:28:27]} {[%emt
00:03:37]} Qd7 {[%clk 00:45:29]} {[%emt 00:00:38]} 46. Rf2 {[%clk 00:26:02]}
{[%emt 00:02:55]} d5 {[%clk 00:44:08]} {[%emt 00:01:52]} 47. Re2 {[%clk
00:22:22]} {[%emt 00:04:10]} Qd6 {[%clk 00:42:06]} {[%emt 00:02:32]} 48. Qxa7
{[%clk 00:22:18]} {[%emt 00:00:33]} dxc4 {[%clk 00:41:55]} {[%emt 00:00:41]} 49.
Qxh7 {[%clk 00:22:00]} {[%emt 00:00:48]} Qc6+ {[%clk 00:40:56]} {[%emt
00:01:29]} 50. Kh2 {[%clk 00:20:21]} {[%emt 00:02:09]} Kd5 {[%clk 00:40:23]}
{[%emt 00:01:03]} 51. a7 {[%clk 00:19:41]} {[%emt 00:01:11]} Qa8 {[%clk
00:39:32]} {[%emt 00:01:20]} 52. Qd7+ {[%clk 00:19:32]} {[%emt 00:00:39]} Bd6
{[%clk 00:39:48]} {[%emt 00:00:14]} 53. Qe6+ {[%clk 00:19:54]} {[%emt
00:00:08]} Kd4 {[%emt 00:01:20]} 54. Qe3+ {[%clk 00:20:19]} 1-0

[Event "NJSK 2023 Jeugd A"]
[Site "Almelo, Netherlands"]
[Date "2023.05.02"]
[Round "3.5"]
[White "Boeren, Jurriaan"]
[Black "Smid, Jelle"]
[Result "1/2-1/2"]
[TimeControl "90min/40moves + 30min + 30sec/move"]
[WhiteElo "1979"]
[BlackElo "1776"]

1. e4 {[%clk 01:30:58]} {[%emt 00:00:02]} e6 {[%clk 01:30:43]} {[%emt
00:00:16]} 2. d4 {[%clk 01:31:24]} {[%emt 00:00:04]} d5 {[%clk 01:31:09]}
{[%emt 00:00:04]} 3. exd5 {[%clk 01:31:50]} {[%emt 00:00:05]} exd5 {[%clk
01:31:33]} {[%emt 00:00:05]} 4. Nf3 {[%clk 01:32:18]} {[%emt 00:00:03]} Nf6
{[%clk 01:30:12]} {[%emt 00:01:51]} 5. Bd3 {[%clk 01:32:36]} {[%emt 00:00:12]}
c5 {[%clk 01:30:36]} {[%emt 00:00:06]} 6. O-O {[%clk 01:32:58]} {[%emt
00:00:08]} c4 {[%clk 01:31:00]} {[%emt 00:00:06]} 7. Re1+ {[%clk 01:33:24]}
{[%emt 00:00:04]} Be7 {[%clk 01:31:21]} {[%emt 00:00:09]} 8. Bf1 {[%clk
01:33:52]} {[%emt 00:00:02]} O-O {[%clk 01:31:06]} {[%emt 00:00:45]} 9. b3
{[%clk 01:33:53]} {[%emt 00:00:29]} cxb3 {[%clk 01:31:30]} {[%emt 00:00:07]} 10.
axb3 {[%clk 01:34:16]} {[%emt 00:00:06]} Nc6 {[%clk 01:30:39]} {[%emt
00:01:21]} 11. Bg5 {[%clk 01:21:24]} {[%emt 00:13:22]} Bg4 {[%clk 01:28:52]}
{[%emt 00:02:17]} 12. c3 {[%clk 01:19:59]} {[%emt 00:01:55]} h6 {[%clk
01:26:20]} {[%emt 00:03:02]} 13. Bh4 {[%clk 01:19:00]} {[%emt 00:01:29]} Ne4
{[%clk 01:20:46]} {[%emt 00:06:03]} 14. Bxe7 {[%clk 01:18:08]} {[%emt
00:01:23]} Nxe7 {[%clk 01:20:52]} {[%emt 00:00:24]} 15. h3 {[%clk 01:10:18]}
{[%emt 00:08:20]} Bxf3 {[%clk 01:19:12]} {[%emt 00:02:10]} 16. Qxf3 {[%clk
01:10:27]} {[%emt 00:00:21]} Nc6 {[%clk 01:12:28]} {[%emt 00:07:13]} 17. Bd3
{[%clk 01:02:12]} {[%emt 00:08:45]} f5 {[%clk 01:10:39]} {[%emt 00:02:20]} 18.
Qe2 {[%clk 00:42:23]} {[%emt 00:20:19]} Qb6 {[%clk 01:03:58]} {[%emt 00:07:10]}
19. f3 {[%clk 00:40:05]} {[%emt 00:02:48]} Nxc3 {[%clk 01:02:49]} {[%emt
00:01:39]} 20. Qe6+ {[%clk 00:35:12]} {[%emt 00:05:24]} Kh8 {[%clk 01:03:08]}
{[%emt 00:00:11]} 21. Bxf5 {[%clk 00:33:03]} {[%emt 00:02:39]} Nxb1 {[%clk
00:48:53]} {[%emt 00:14:45]} 22. Raxb1 {[%clk 00:24:58]} {[%emt 00:08:35]}
Qxd4+ {[%clk 00:45:47]} {[%emt 00:03:35]} 23. Kh1 {[%clk 00:24:14]} {[%emt
00:01:14]} Qf6 {[%clk 00:46:03]} {[%emt 00:00:14]} 24. Qxf6 {[%clk 00:21:35]}
{[%emt 00:03:10]} Rxf6 {[%clk 00:46:26]} {[%emt 00:00:07]} 25. Be6 {[%clk
00:20:51]} {[%emt 00:01:13]} Rd8 {[%clk 00:42:23]} {[%emt 00:04:32]} 26. Rbd1
{[%clk 00:20:02]} {[%emt 00:01:20]} a5 {[%clk 00:41:13]} {[%emt 00:01:41]} 27.
Kg1 {[%clk 00:19:51]} {[%emt 00:00:41]} d4 {[%clk 00:40:12]} {[%emt 00:01:30]}
28. Kf2 {[%clk 00:15:45]} {[%emt 00:04:36]} g6 {[%clk 00:36:49]} {[%emt
00:03:53]} 29. Bc4 {[%clk 00:14:47]} {[%emt 00:01:28]} Kg7 {[%clk 00:36:15]}
{[%emt 00:01:03]} 30. Re4 {[%clk 00:12:50]} {[%emt 00:02:28]} Rf5 {[%clk
00:34:42]} {[%emt 00:02:03]} 31. g4 {[%clk 00:11:24]} {[%emt 00:01:57]} Re5
{[%clk 00:34:26]} {[%emt 00:00:46]} 32. Rxe5 {[%clk 00:08:22]} {[%emt
00:03:33]} Nxe5 {[%clk 00:34:48]} {[%emt 00:00:07]} 33. f4 {[%clk 00:06:48]}
{[%emt 00:02:03]} Nxc4 {[%clk 00:34:24]} {[%emt 00:00:54]} 34. bxc4 {[%clk
00:07:17]} {[%emt 00:00:02]} Kf6 {[%clk 00:29:06]} {[%emt 00:05:47]} 35. Rb1
{[%clk 00:03:04]} {[%emt 00:04:44]} Rd7 {[%clk 00:11:55]} {[%emt 00:17:41]} 36.
Ke2 {[%clk 00:01:41]} {[%emt 00:01:53]} d3+ {[%clk 00:09:40]} {[%emt 00:02:45]}
37. Ke3 {[%clk 00:00:51]} {[%emt 00:01:20]} d2 {[%clk 00:09:53]} {[%emt
00:00:16]} 38. Rd1 {[%clk 00:01:10]} {[%emt 00:00:11]} Re7+ {[%clk 00:04:21]}
{[%emt 00:06:02]} 39. Kd3 {[%clk 00:01:13]} {[%emt 00:00:27]} Rd7+ {[%clk
00:03:51]} {[%emt 00:01:01]} 40. Ke3 {[%clk 00:01:02]} {[%emt 00:00:39]} Re7+
{[%clk 00:04:15]} {[%emt 00:00:07]} 41. Kd3 {[%clk 00:29:22]} {[%emt 00:02:10]}
Rd7+ {[%clk 00:34:39]} {[%emt 00:00:06]} 42. Ke3 {[%clk 00:27:42]} {[%emt
00:02:08]} Re7+ {[%clk 00:34:25]} {[%emt 00:00:12]} 1/2-1/2